fUSD/lending_fUSD_20250905
["ID","MTS","AMOUNT","RATE_DAILY","PERIOD"]
[383698323,1757093460598,-900.0,0.00034179,7]
[383698325,1757093460608,-150.0,0.0003418,120]
[383698326,1757093460618,-1000.0,0.00034181,7]
[383698329,1757093460629,-1000.0,0.00034182,7]
[383698330,1757093460639,-1000.0,0.00034184,7]
[383698332,1757093460650,-1000.0,0.00034189,7]
[383698333,1757093460661,-3253.59,0.000342,14]
[383698335,1757093460670,-500.0,0.00034203,7]
[383698336,1757093460681,-272.02728421,0.0003422,2]
[383698338,1757093460690,-500.0,0.00034222,7]
[383698339,1757093460700,-196.35202683,0.0003423,7]
[383698341,1757093460709,-1000.0,0.00034233,7]
[383698342,1757093460718,-1300.0,0.00034252,7]
[383698344,1757093460728,-1000.0,0.00034288,7]
[383698346,1757093460738,-421.0,0.00034302,2]
[383698347,1757093460747,-1000.0,0.00034309,7]
[383698349,1757093460757,-150.0,0.00034317,120]
[383698350,1757093460767,-421.0,0.00034319,2]
[383698352,1757093460776,-421.0,0.00034324,7]
[383698353,1757093460786,-421.0,0.00034326,2]
[383698355,1757093460795,-423.0,0.00034333,2]
[383698357,1757093460804,-500.0,0.00034337,7]
[383698358,1757093460814,-421.0,0.00034345,120]
[383698360,1757093460823,-900.0,0.00034359,7]
[383698361,1757093460833,-1000.0,0.00034364,7]
[383698363,1757093460843,-1000.0,0.00034367,7]
[383698364,1757093460852,-381.2,0.00034383,9]
[383698366,1757093460862,-1000.0,0.00034389,7]
[383698367,1757093460871,-900.0,0.0003441,7]
[383698369,1757093460880,-1000.0,0.0003442,7]
[383698371,1757093460890,-500.0,0.00034434,7]
[383698372,1757093460900,-421.0,0.00034435,2]
[383698374,1757093460910,-1000.0,0.00034437,7]
[383698376,1757093460920,-1000.0,0.00034469,7]
[383698377,1757093460930,-500.0,0.0003447,7]
[383698379,1757093460939,-1000.0,0.00034499,7]
[383698381,1757093460950,-500.0,0.00034516,7]
[383698383,1757093460960,-500.0,0.00034521,2]
[383698384,1757093460971,-500.0,0.00034543,7]
[383698386,1757093460981,-500.0,0.0003457,7]
[383698387,1757093460991,-421.0,0.00034574,2]
[383698389,1757093461001,-4000.0,0.00034594,4]
[383698391,1757093461012,-15343.32255191,0.00034607,5]
[383698392,1757093461022,-5340.4364691,0.00034612,2]
[383698394,1757093461032,-1000.0,0.00034613,7]
[383698396,1757093461041,-500.0,0.00034633,7]
[383698397,1757093461052,-352.93,0.00034655,2]
[383698399,1757093461061,-301.36,0.00034655,2]
[383698401,1757093461072,-500.0,0.00034656,7]
[383698402,1757093461082,-500.0,0.00034661,7]
[383698404,1757093461091,-906.9687819,0.00034668,2]
[383698406,1757093461101,-1000.0,0.00034699,7]
[383698407,1757093461111,-13159.05,0.000347,2]
[383698409,1757093461120,-500.0,0.00034701,7]
[383698411,1757093461130,-421.0,0.00034706,2]
[383698413,1757093461140,-1000.0,0.00034717,7]
[383698415,1757093461151,-421.0,0.00034718,2]
[383698417,1757093461160,-900.0,0.00034732,7]
[383698419,1757093461170,-421.0,0.00034733,2]
[383698421,1757093461180,-500.0,0.0003476,7]
[383698423,1757093461190,-1000.0,0.0003478,7]
[383698425,1757093461199,-500.0,0.00034784,7]
[383698427,1757093461208,-1000.0,0.000348,7]
[383698429,1757093461217,-421.0,0.00034801,7]
[383698431,1757093461227,-1000.0,0.00034803,7]
[383698433,1757093461237,-1000.0,0.00034807,7]
[383698435,1757093461246,-470.16,0.00034842,2]
[383698437,1757093461256,-1000.0,0.00034843,7]
[383698439,1757093461266,-900.0,0.00034863,7]
[383698441,1757093461275,-421.0,0.00034871,7]
[383698443,1757093461285,-409.76,0.00034877,2]
[383698445,1757093461295,-500.0,0.00034898,7]
[383698447,1757093461304,-930.45,0.000349,30]
[383698449,1757093461314,-1000.0,0.00034922,7]
[383698450,1757093461323,-1185.0,0.00034923,2]
[383698451,1757093461333,-788.21925849,0.00034987,2]
[383698452,1757093461342,-167.72,0.00034994,30]
[383698453,1757093461351,-359.76179104,0.00034995,2]
[383698454,1757093461360,-287.61899177,0.00034995,2]
[383698455,1757093461369,-500.0,0.00034999,7]
[383698456,1757093461379,-225.0,0.00035,120]
[383698457,1757093461388,-490.54,0.00035,7]
[383698458,1757093461397,-200.0,0.00035,2]
[383698459,1757093461406,-6528.77108238,0.00035,2]
[383698460,1757093461416,-254.23466065,0.00035,30]
[383698461,1757093461425,-1300.0,0.00035011,7]
[383698462,1757093461434,-900.0,0.00035023,7]
[383698463,1757093461443,-421.0,0.00035031,2]
[383698464,1757093461453,-167.56689422,0.00035035,120]
[383698465,1757093461462,-1000.0,0.00035043,7]
[383698466,1757093461471,-900.0,0.00035048,7]
[383698467,1757093461481,-500.0,0.00035052,7]
[383698468,1757093461490,-500.0,0.00035067,7]
[383698469,1757093461499,-381.2,0.00035068,11]
[383698471,1757093461508,-500.0,0.00035071,7]
[383698472,1757093461518,-617.89901712,0.00035083,7]
[383698474,1757093461529,-900.0,0.00035084,7]
[383698475,1757093461538,-500.0,0.00035087,7]
[383698477,1757093461547,-301.85,0.00035096,2]
[383698479,1757093461557,-1081.93,0.00035096,2]
[383698481,1757093461566,-409.76,0.00035096,2]
[383698483,1757093461575,-335.5,0.00035096,2]
[383698485,1757093461584,-409.76,0.00035096,2]
[383698487,1757093461593,-500.0,0.00035106,7]
[383698489,1757093461603,-247.0,0.0003516,2]
[383698491,1757093461612,-1000.0,0.00035163,7]
[383698493,1757093461622,-1000.0,0.00035164,7]
[383698495,1757093461633,-1506.7025196,0.00035193,24]
[383698497,1757093461643,-1210.7838621,0.00035205,2]
[383698499,1757093461652,-500.0,0.00035255,7]
[383698501,1757093461662,-421.0,0.00035258,2]
[383698503,1757093461672,-603.27904872,0.00035258,7]
[383698505,1757093461682,-1300.0,0.00035282,7]
[383698507,1757093461691,-1252.69154515,0.00035286,7]
[383698509,1757093461701,-13159.05,0.000353,2]
[383698511,1757093461711,-165.58786832,0.00035313,15]
[383698513,1757093461722,-500.0,0.00035326,7]
[383698515,1757093461732,-933.30342496,0.0003534,7]
[383698517,1757093461742,-272.02728421,0.00035356,2]
[383698519,1757093461751,-1300.0,0.000354,7]
[383698521,1757093461761,-5340.4364691,0.00035475,2]
[383698524,1757093461771,-1000.0,0.00035495,7]
[383698526,1757093461781,-900.0,0.00035509,7]
[383698528,1757093461791,-2004.34436856,0.00035516,2]
[383698529,1757093461800,-421.0,0.00035553,2]
[383698532,1757093461810,-1000.0,0.00035566,7]
[383698534,1757093461820,-1000.0,0.00035575,7]
[383698535,1757093461830,-972.53642214,0.00035579,7]
[383698537,1757093461840,-611.37,0.00035583,2]
[383698539,1757093461849,-991.32403519,0.00035592,7]
[383698542,1757093461859,-1500.0,0.00035599,7]
[383698544,1757093461869,-500.0,0.00035613,7]
[383698546,1757093461879,-400.0,0.00035616,10]
[383698547,1757093461890,-472.95162936,0.00035616,10]
[383698549,1757093461899,-304.95693825,0.00035616,10]
[383698552,1757093461909,-400.0,0.00035616,10]
[383698554,1757093461918,-400.0,0.00035616,10]
[383698555,1757093461928,-301.07284554,0.00035616,10]
[383698558,1757093461937,-246.2615995,0.00035616,10]
[383698560,1757093461947,-402.73910246,0.00035616,10]
[383698562,1757093461957,-402.12733449,0.00035616,10]
[383698564,1757093461968,-400.0,0.00035616,10]
[383698566,1757093461979,-400.0,0.00035616,10]
[383698568,1757093461988,-400.0,0.00035616,10]
[383698570,1757093461999,-400.0,0.00035616,10]
[383698571,1757093462009,-400.0,0.00035616,10]
[383698574,1757093462021,-400.0,0.00035616,10]
[383698575,1757093462031,-400.0,0.00035616,10]
[383698577,1757093462043,-400.64015021,0.00035616,10]
[383698579,1757093462053,-400.0,0.00035616,10]
[383698581,1757093462064,-400.0,0.00035616,10]
[383698583,1757093462075,-400.0,0.00035616,10]
[383698586,1757093462086,-193.80804831,0.00035616,10]
[383698588,1757093462097,-400.0,0.00035616,10]
[383698589,1757093462106,-400.0,0.00035616,10]
[383698591,1757093462116,-400.0,0.00035616,2]
[383698593,1757093462126,-400.0,0.00035616,3]
[383698595,1757093462139,-400.0,0.00035616,10]
[383698597,1757093462149,-400.0,0.00035616,10]
[383698599,1757093462159,-400.0,0.00035616,10]
[383698601,1757093462168,-400.0,0.00035616,10]
[383698603,1757093462177,-186.17470468,0.00035616,10]
[383698605,1757093462187,-400.0,0.00035616,10]
[383698607,1757093462197,-400.0,0.00035616,10]
[383698609,1757093462207,-400.0,0.00035616,10]
[383698611,1757093462218,-400.0,0.00035616,10]
[383698613,1757093462228,-400.0,0.00035616,10]
[383698615,1757093462238,-400.0,0.00035616,10]
[383698617,1757093462247,-400.0,0.00035616,10]
[383698619,1757093462257,-400.0,0.00035616,10]
[383698621,1757093462267,-400.0,0.00035616,10]
[383698623,1757093462277,-242.82005417,0.00035616,10]
[383698625,1757093462286,-400.0,0.00035616,10]
[383698627,1757093462296,-400.0,0.00035616,10]
[383698629,1757093462306,-400.0,0.00035616,10]
[383698631,1757093462315,-359.02772326,0.00035616,10]
[383698633,1757093462325,-400.0,0.00035616,10]
[383698635,1757093462335,-400.0,0.00035616,10]
[383698637,1757093462345,-244.01813448,0.00035616,10]
[383698639,1757093462354,-400.0,0.00035616,10]
[383698641,1757093462365,-510.69201801,0.00035616,10]
[383698643,1757093462375,-400.0,0.00035616,10]
[383698645,1757093462387,-400.0,0.00035616,10]
[383698647,1757093462397,-275.78378361,0.00035616,10]
[383698649,1757093462407,-400.0,0.00035616,10]
[383698651,1757093462417,-186.11779084,0.00035616,10]
[383698653,1757093462428,-400.0,0.00035616,10]
[383698656,1757093462438,-400.0,0.00035616,10]
[383698657,1757093462448,-400.0,0.00035616,10]
[383698659,1757093462457,-400.0,0.00035616,10]
[383698661,1757093462466,-400.0,0.00035616,10]
[383698663,1757093462476,-400.0,0.00035616,10]
[383698665,1757093462486,-400.0,0.00035616,10]
[383698667,1757093462496,-400.0,0.00035616,10]
[383698669,1757093462505,-400.0,0.00035616,10]
[383698671,1757093462515,-400.0,0.00035616,10]
[383698674,1757093462526,-400.0,0.00035616,10]
[383698676,1757093462535,-400.0,0.00035616,10]
[383698678,1757093462544,-400.0,0.00035616,10]
[383698680,1757093462553,-400.0,0.00035616,10]
[383698681,1757093462563,-400.0,0.00035616,10]
[383698684,1757093462573,-400.0,0.00035616,10]
[383698685,1757093462582,-400.0,0.00035616,10]
[383698687,1757093462591,-417.94308881,0.00035616,10]
[383698689,1757093462601,-400.0,0.00035616,10]
[383698691,1757093462611,-400.0,0.00035616,10]
[383698693,1757093462621,-400.0,0.00035616,10]
[383698695,1757093462632,-402.02,0.00035616,10]
[383698697,1757093462642,-164.886452,0.00035616,10]
[383698699,1757093462651,-400.0,0.00035616,10]
[383698701,1757093462660,-400.0,0.00035616,10]
[383698703,1757093462668,-400.0,0.00035616,10]
[383698705,1757093462678,-400.0,0.00035616,10]
[383698707,1757093462688,-400.0,0.00035616,10]
[383698709,1757093462697,-400.0,0.00035616,10]
[383698711,1757093462707,-487.34,0.00035616,10]
[383698713,1757093462717,-400.0,0.00035616,10]
[383698715,1757093462726,-401.9744249,0.00035616,10]
[383698717,1757093462736,-400.0,0.00035616,10]
[383698719,1757093462746,-400.0,0.00035616,10]
[383698721,1757093462755,-400.0,0.00035616,10]
[383698723,1757093462766,-400.0,0.00035616,10]
[383698725,1757093462776,-400.0,0.00035616,10]
[383698727,1757093462785,-400.0,0.00035616,10]
[383698744,1757093462795,-400.0,0.00035616,10]
[383698747,1757093462956,-400.0,0.00035616,10]
[383698749,1757093462966,-400.0,0.00035616,10]
[383698751,1757093462978,-400.0,0.00035616,10]
[383698753,1757093462988,-400.0,0.00035616,10]
[383698755,1757093462998,-400.0,0.00035616,10]
[383698757,1757093463007,-400.0,0.00035616,10]
[383698759,1757093463018,-400.0,0.00035616,10]
[383698761,1757093463028,-400.0,0.00035616,10]
[383698763,1757093463040,-400.0,0.00035616,10]
[383698765,1757093463050,-400.0,0.00035616,10]
[383698766,1757093463061,-400.0,0.00035616,10]
[383698767,1757093463071,-400.0,0.00035616,10]
[383698768,1757093463082,-400.0,0.00035616,10]
[383698769,1757093463092,-400.0,0.00035616,10]
[383698770,1757093463102,-400.0,0.00035616,10]
[383698771,1757093463112,-400.0,0.00035616,10]
[383698772,1757093463122,-400.0,0.00035616,10]
[383698773,1757093463134,-400.0,0.00035616,10]
[383698774,1757093463143,-400.0,0.00035616,10]
[383698775,1757093463153,-400.0,0.00035616,10]
[383698776,1757093463164,-400.0,0.00035616,10]
[383698777,1757093463178,-500.0,0.00035616,10]
[383698778,1757093463189,-500.0,0.00035616,10]
[383698779,1757093463199,-500.0,0.00035616,10]
[383698780,1757093463209,-500.0,0.00035616,10]
[383698781,1757093463220,-500.0,0.00035616,10]
[383698782,1757093463230,-402.35264106,0.00035616,10]
[383698783,1757093463240,-500.0,0.00035616,10]
[383698784,1757093463251,-400.0,0.00035616,10]
[383698785,1757093463261,-400.0,0.00035616,10]
[383698787,1757093463270,-510.69,0.00035616,10]
[383698789,1757093463280,-400.0,0.00035616,10]
[383698791,1757093463290,-400.0,0.00035616,10]
[383698793,1757093463300,-400.0,0.00035616,10]
[383698795,1757093463310,-400.0,0.00035616,10]
[383698797,1757093463320,-400.0,0.00035616,10]
[383698799,1757093463330,-400.0,0.00035616,10]
[383698801,1757093463341,-400.0,0.00035616,10]
[383698803,1757093463352,-400.0,0.00035616,10]
[383698805,1757093463361,-401.11649264,0.00035616,10]
[383698806,1757093463371,-400.0,0.00035616,10]
[383698808,1757093463381,-400.0,0.00035616,10]
[383698810,1757093463391,-400.0,0.00035616,10]
[383698812,1757093463408,-400.0,0.00035616,10]
[383698815,1757093463420,-400.0,0.00035616,10]
[383698816,1757093463430,-400.0,0.00035616,10]
[383698819,1757093463442,-400.0,0.00035616,10]
[383698821,1757093463455,-400.0,0.00035616,10]
[383698823,1757093463465,-400.0,0.00035616,10]
[383698825,1757093463476,-400.0,0.00035616,10]
[383698827,1757093463485,-663.48,0.00035616,10]
[383698828,1757093463495,-400.0,0.00035616,10]
[383698830,1757093463505,-400.0,0.00035616,10]
[383698832,1757093463515,-400.0,0.00035616,10]
[383698834,1757093463524,-400.0,0.00035616,10]
[383698836,1757093463533,-401.75862138,0.00035616,10]
[383698837,1757093463544,-500.0,0.00035616,10]
[383698839,1757093463554,-500.0,0.00035616,10]
[383698841,1757093463563,-952.82,0.00035616,10]
[383698842,1757093463573,-500.0,0.00035616,10]
[383698843,1757093463582,-500.0,0.00035616,10]
[383698844,1757093463592,-400.0,0.00035616,10]
[383698845,1757093463601,-400.0,0.00035616,10]
[383698846,1757093463610,-400.0,0.00035616,10]
[383698847,1757093463620,-500.0,0.00035616,10]
[383698848,1757093463630,-500.0,0.00035616,10]
[383698849,1757093463641,-400.0,0.00035616,10]
[383698851,1757093463651,-500.0,0.00035616,10]
[383698852,1757093463661,-500.0,0.00035616,10]
[383698854,1757093463671,-814.94,0.00035616,10]
[383698856,1757093463680,-500.0,0.00035616,10]
[383698858,1757093463690,-500.0,0.00035616,10]
[383698860,1757093463700,-400.0,0.00035616,10]
[383698862,1757093463709,-500.0,0.00035616,10]
[383698864,1757093463719,-500.0,0.00035616,10]
[383698866,1757093463728,-500.0,0.00035616,10]
[383698868,1757093463737,-500.0,0.00035616,10]
[383698870,1757093463747,-400.0,0.00035616,10]
[383698872,1757093463757,-500.0,0.00035616,10]
[383698874,1757093463767,-500.0,0.00035616,10]
[383698875,1757093463777,-400.0,0.00035616,10]
[383698876,1757093463787,-500.0,0.00035616,10]
[383698877,1757093463797,-500.0,0.00035616,10]
[383698878,1757093463807,-688.25,0.00035616,10]
[383698879,1757093463818,-400.0,0.00035616,10]
[383698880,1757093463832,-400.0,0.00035616,10]
[383698881,1757093463843,-400.0,0.00035616,10]
[383698882,1757093463854,-400.0,0.00035616,10]
[383698883,1757093463864,-400.0,0.00035616,10]
[383698884,1757093463875,-400.0,0.00035616,10]
[383698885,1757093463886,-401.24523612,0.00035616,10]
[383698886,1757093463896,-400.0,0.00035616,10]
[383698887,1757093463907,-400.0,0.00035616,10]
[383698888,1757093463916,-400.0,0.00035616,10]
[383698889,1757093463926,-401.75180667,0.00035616,10]
[383698890,1757093463936,-400.0,0.00035616,10]
[383698891,1757093463946,-400.0,0.00035616,10]
[383698892,1757093463956,-400.0,0.00035616,10]
[383698893,1757093463968,-400.0,0.00035616,10]
[383698894,1757093463982,-400.0,0.00035616,10]
[383698895,1757093463992,-531.26,0.00035616,10]
[383698896,1757093464003,-408.44235652,0.00035616,10]
[383698897,1757093464015,-400.0,0.00035616,10]
[383698898,1757093464026,-400.0,0.00035616,10]
[383698899,1757093464052,-400.0,0.00035616,10]
[383698900,1757093464071,-400.0,0.00035616,10]
[383698901,1757093464095,-400.0,0.00035616,10]
[383698902,1757093464116,-400.0,0.00035616,10]
[383698904,1757093464131,-400.0,0.00035616,10]
[383698907,1757093464152,-400.0,0.00035616,10]
[383698910,1757093464171,-400.0,0.00035616,10]
[383698913,1757093464190,-516.97,0.00035616,10]
[383698916,1757093464211,-400.0,0.00035616,10]
[383698919,1757093464231,-400.0,0.00035616,10]
[383698923,1757093464253,-400.0,0.00035616,10]
[383698926,1757093464272,-400.0,0.00035616,10]
[383698928,1757093464286,-400.0,0.00035616,10]
[383698931,1757093464305,-400.0,0.00035616,10]
[383698933,1757093464318,-407.46139105,0.00035616,10]
[383698936,1757093464336,-400.0,0.00035616,10]
[383698939,1757093464354,-400.0,0.00035616,10]
[383698941,1757093464371,-400.0,0.00035616,10]
[383698944,1757093464388,-400.0,0.00035616,10]
[383698947,1757093464406,-400.0,0.00035616,10]
[383698950,1757093464424,-400.0,0.00035616,10]
[383698953,1757093464441,-400.0,0.00035616,10]
[383698956,1757093464458,-400.0,0.00035616,10]
[383698958,1757093464474,-400.0,0.00035616,10]
[383698961,1757093464491,-400.0,0.00035616,10]
[383698964,1757093464507,-400.0,0.00035616,10]
[383698966,1757093464524,-400.0,0.00035616,10]
[383698969,1757093464541,-500.0,0.00035616,10]
[383698972,1757093464557,-522.749077,0.00035616,10]
[383698974,1757093464572,-400.0,0.00035616,10]
[383698977,1757093464587,-400.0,0.00035616,10]
[383698979,1757093464603,-400.0,0.00035616,10]
[383698982,1757093464619,-400.0,0.00035616,10]
[383698985,1757093464638,-400.0,0.00035616,10]
[383698988,1757093464658,-400.0,0.00035616,10]
[383698991,1757093464676,-400.0,0.00035616,10]
[383698994,1757093464693,-400.0,0.00035616,10]
[383698997,1757093464710,-400.0,0.00035616,10]
[383699000,1757093464727,-400.0,0.00035616,10]
[383699002,1757093464744,-400.0,0.00035616,10]
[383699005,1757093464760,-400.0,0.00035616,10]
[383699008,1757093464776,-400.0,0.00035616,10]
[383699010,1757093464791,-400.0,0.00035616,10]
[383699013,1757093464806,-400.0,0.00035616,10]
[383699015,1757093464820,-400.0,0.00035616,10]
[383699018,1757093464841,-400.0,0.00035616,10]
[383699021,1757093464857,-400.0,0.00035616,10]
[383699024,1757093464874,-400.0,0.00035616,10]
[383699026,1757093464891,-401.23795837,0.00035616,10]
[383699029,1757093464906,-400.0,0.00035616,10]
[383699031,1757093464922,-400.0,0.00035616,10]
[383699034,1757093464939,-400.0,0.00035616,10]
[383699037,1757093464954,-400.0,0.00035616,10]
[383699038,1757093464971,-400.0,0.00035616,10]
[383699041,1757093464986,-401.2553681,0.00035616,10]
[383699044,1757093465002,-400.0,0.00035616,10]
[383699046,1757093465019,-400.0,0.00035616,10]
[383699049,1757093465035,-400.0,0.00035616,10]
[383699051,1757093465051,-400.0,0.00035616,10]
[383699054,1757093465066,-400.0,0.00035616,10]
[383699057,1757093465081,-400.0,0.00035616,10]
[383699059,1757093465098,-400.47227853,0.00035616,10]
[383699062,1757093465113,-400.0,0.00035616,10]
[383699065,1757093465129,-400.0,0.00035616,10]
[383699067,1757093465149,-400.0,0.00035616,10]
[383699070,1757093465165,-404.63880389,0.00035616,10]
[383699072,1757093465181,-400.0,0.00035616,10]
[383699073,1757093465198,-400.0,0.00035616,10]
[383699074,1757093465213,-400.0,0.00035616,10]
[383699075,1757093465230,-400.0,0.00035616,10]
[383699076,1757093465245,-400.0,0.00035616,10]
[383699077,1757093465261,-400.0,0.00035616,10]
[383699078,1757093465277,-400.0,0.00035616,10]
[383699079,1757093465292,-400.0,0.00035616,10]
[383699080,1757093465307,-435.75,0.00035616,10]
[383699081,1757093465322,-400.0,0.00035616,10]
[383699082,1757093465338,-400.0,0.00035616,10]
[383699083,1757093465353,-402.7024905,0.00035616,10]
[383699084,1757093465369,-400.0,0.00035616,10]
[383699085,1757093465385,-400.0,0.00035616,10]
[383699086,1757093465401,-400.0,0.00035616,10]
[383699087,1757093465416,-400.0,0.00035616,10]
[383699088,1757093465431,-400.0,0.00035616,10]
[383699089,1757093465446,-400.0,0.00035616,10]
[383699090,1757093465463,-400.0,0.00035616,10]
[383699091,1757093465477,-400.0,0.00035616,10]
[383699094,1757093465493,-400.0,0.00035616,10]
[383699096,1757093465509,-400.0,0.00035616,10]
[383699097,1757093465525,-400.0,0.00035616,10]
[383699100,1757093465540,-400.0,0.00035616,10]
[383699102,1757093465555,-400.0,0.00035616,10]
[383699105,1757093465571,-400.0,0.00035616,10]
[383699108,1757093465586,-400.0,0.00035616,10]
[383699110,1757093465601,-400.0,0.00035616,10]
[383699113,1757093465615,-400.0,0.00035616,10]
[383699115,1757093465629,-400.0,0.00035616,10]
[383699118,1757093465647,-400.0,0.00035616,10]
[383699120,1757093465663,-444.41779806,0.00035616,10]
[383699123,1757093465678,-400.0,0.00035616,10]
[383699126,1757093465695,-400.0,0.00035616,10]
[383699128,1757093465710,-400.0,0.00035616,10]
[383699131,1757093465724,-400.0,0.00035616,2]
[383699134,1757093465740,-401.16520224,0.00035616,10]
[383699136,1757093465756,-405.13493824,0.00035616,10]
[383699139,1757093465772,-400.0,0.00035616,2]
[383699141,1757093465787,-500.0,0.00035616,10]
[383699144,1757093465802,-400.0,0.00035616,10]
[383699170,1757093466040,-417.7103574,0.00035616,10]
[383699172,1757093466057,-400.0,0.00035616,10]
[383699174,1757093466067,-400.0,0.00035616,10]
[383699177,1757093466077,-400.0,0.00035616,10]
[383699179,1757093466088,-400.0,0.00035616,10]
[383699181,1757093466097,-400.0,0.00035616,10]
[383699183,1757093466107,-401.04455463,0.00035616,10]
[383699185,1757093466117,-400.0,0.00035616,10]
[383699187,1757093466127,-400.0,0.00035616,10]
[383699189,1757093466136,-400.0,0.00035616,10]
[383699191,1757093466146,-400.0,0.00035616,10]
[383699193,1757093466155,-400.0,0.00035616,10]
[383699195,1757093466165,-400.0,0.00035616,10]
[383699197,1757093466174,-400.0,0.00035616,10]
[383699199,1757093466184,-400.0,0.00035616,10]
[383699201,1757093466193,-401.56263787,0.00035616,10]
[383699202,1757093466203,-400.0,0.00035616,10]
[383699203,1757093466214,-403.9685018,0.00035616,10]
[383699204,1757093466223,-400.0,0.00035616,10]
[383699205,1757093466233,-400.0,0.00035616,10]
[383699206,1757093466246,-400.0,0.00035616,10]
[383699207,1757093466255,-400.0,0.00035616,10]
[383699208,1757093466264,-400.0,0.00035616,10]
[383699209,1757093466274,-400.0,0.00035616,10]
[383699210,1757093466283,-400.0,0.00035616,10]
[383699211,1757093466292,-400.0,0.00035616,10]
[383699213,1757093466303,-400.0,0.00035616,10]
[383699214,1757093466312,-400.0,0.00035616,10]
[383699216,1757093466321,-400.0,0.00035616,10]
[383699218,1757093466331,-400.0,0.00035616,10]
[383699220,1757093466340,-400.0,0.00035616,10]
[383699222,1757093466350,-400.0,0.00035616,10]
[383699224,1757093466359,-400.0,0.00035616,10]
[383699226,1757093466369,-400.0,0.00035616,10]
[383699228,1757093466380,-400.0,0.00035616,10]
[383699230,1757093466390,-400.0,0.00035616,10]
[383699232,1757093466400,-400.0,0.00035616,10]
[383699234,1757093466409,-400.0,0.00035616,10]
[383699236,1757093466419,-400.0,0.00035616,10]
[383699238,1757093466429,-400.0,0.00035616,10]
[383699240,1757093466438,-400.0,0.00035616,10]
[383699242,1757093466448,-400.0,0.00035616,10]
[383699245,1757093466458,-400.0,0.00035616,10]
[383699247,1757093466467,-2011.19516488,0.00035616,30]
[383699249,1757093466476,-400.0,0.00035616,10]
[383699250,1757093466486,-400.0,0.00035616,10]
[383699252,1757093466495,-400.0,0.00035616,10]
[383699254,1757093466504,-402.86,0.00035616,10]
[383699256,1757093466514,-400.0,0.00035616,10]
[383699258,1757093466523,-400.0,0.00035616,10]
[383699260,1757093466532,-400.0,0.00035616,10]
[383699262,1757093466542,-400.0,0.00035616,10]
[383699264,1757093466552,-400.0,0.00035616,10]
[383699266,1757093466561,-400.0,0.00035616,10]
[383699268,1757093466570,-400.0,0.00035616,10]
[383699270,1757093466580,-400.0,0.00035616,10]
[383699272,1757093466589,-400.0,0.00035616,10]
[383699274,1757093466599,-400.0,0.00035616,10]
[383699276,1757093466608,-174.11229007,0.00035616,10]
[383699278,1757093466618,-400.0,0.00035616,10]
[383699280,1757093466627,-400.0,0.00035616,10]
[383699282,1757093466637,-400.0,0.00035616,10]
[383699284,1757093466646,-400.0,0.00035616,10]
[383699286,1757093466655,-400.0,0.00035616,10]